fUSD/lending_fUSD_20260130
["ID","MTS","AMOUNT","RATE_DAILY","PERIOD"]
[404080809,1769795442773,-1690.0,0.00014331,2]
[404080810,1769795442783,-150.0,0.00014344,2]
[404080811,1769795442792,-500.0,0.00014344,2]
[404080812,1769795442802,-500.0,0.00014344,2]
[404080813,1769795442813,-280.11730134,0.00014344,2]
[404080814,1769795442821,-150.0,0.00014344,2]
[404080815,1769795442830,-150.0,0.00014344,2]
[404080816,1769795442839,-500.0,0.00014344,2]
[404080817,1769795442848,-150.0,0.00014344,2]
[404080818,1769795442858,-500.0,0.00014344,2]
[404080819,1769795442868,-150.0,0.00014344,2]
[404080820,1769795442879,-500.0,0.00014344,2]
[404080821,1769795442889,-500.0,0.00014344,2]
[404080822,1769795442898,-150.0,0.00014344,2]
[404080823,1769795442907,-572.18032737,0.00014344,2]
[404080824,1769795442918,-500.0,0.00014344,2]
[404080825,1769795442927,-500.0,0.00014344,2]
[404080826,1769795442936,-500.0,0.00014344,2]
[404080827,1769795442946,-500.0,0.00014344,2]
[404080828,1769795442955,-500.0,0.00014344,2]
[404080829,1769795442966,-434.79,0.00014361,2]
[404080830,1769795442976,-15219.50415699,0.00014385,2]
[404080831,1769795442985,-12630.23841915,0.00014385,2]
[404080832,1769795442994,-200.0,0.00014399,2]
[404080833,1769795443004,-572.0,0.00014399,2]
[404080834,1769795443018,-351.8353746,0.00014399,2]
[404080835,1769795443028,-150.0,0.00014399,2]
[404080837,1769795443039,-500.0,0.00014399,2]
[404080839,1769795443048,-150.0,0.00014399,2]
[404080840,1769795443057,-500.0,0.00014399,2]
[404080841,1769795443067,-500.0,0.00014399,2]
[404080842,1769795443076,-500.0,0.00014399,2]
[404080843,1769795443086,-150.0,0.00014399,2]
[404080844,1769795443095,-500.0,0.00014399,2]
[404080845,1769795443104,-500.0,0.00014399,2]
[404080846,1769795443114,-268.77195069,0.00014399,2]
[404080847,1769795443123,-500.0,0.00014399,2]
[404080848,1769795443136,-500.0,0.00014399,2]
[404080849,1769795443145,-4612.24,0.00014411,2]
[404080850,1769795443155,-258.16,0.00014449,2]
[404080851,1769795443164,-438.59588895,0.00014453,2]
[404080852,1769795443174,-592.67,0.00014453,2]
[404080853,1769795443183,-500.0,0.00014453,2]
[404080854,1769795443192,-500.0,0.00014453,2]
[404080856,1769795443203,-500.0,0.00014453,2]
[404080858,1769795443212,-250.0,0.00014453,2]
[404080859,1769795443221,-500.0,0.00014453,2]
[404080860,1769795443230,-150.0,0.00014453,2]
[404080861,1769795443239,-500.0,0.00014453,2]
[404080862,1769795443248,-500.0,0.00014453,2]
[404080863,1769795443258,-500.0,0.00014453,2]
[404080864,1769795443276,-150.0,0.00014453,2]
[404080865,1769795443285,-150.0,0.00014453,2]
[404080866,1769795443294,-500.0,0.00014453,2]
[404080867,1769795443303,-489.31012859,0.00014453,2]
[404080868,1769795443312,-215.78291863,0.00014453,2]
[404080869,1769795443322,-255.0,0.00014491,2]
[404080870,1769795443331,-350.0,0.00014508,2]
[404080871,1769795443340,-238.0007656,0.00014508,2]
[404080872,1769795443350,-500.0,0.00014508,2]
[404080873,1769795443359,-500.0,0.00014508,2]
[404080874,1769795443368,-500.0,0.00014508,2]
[404080875,1769795443377,-150.0,0.00014508,2]
[404080876,1769795443387,-500.0,0.00014508,2]
[404080877,1769795443396,-327.80966846,0.0001451,2]
[404080878,1769795443405,-500.0,0.00014518,2]
[404080879,1769795443414,-555.96823655,0.00014518,2]
[404080880,1769795443423,-1134.55,0.00014547,2]
[404080881,1769795443433,-500.0,0.00014563,2]
[404080882,1769795443442,-500.0,0.00014563,2]
[404080883,1769795443451,-500.0,0.00014563,2]
[404080884,1769795443461,-250.0,0.00014563,2]
[404080885,1769795443470,-500.0,0.00014563,2]
[404080886,1769795443479,-500.0,0.00014618,2]
[404080887,1769795443488,-500.0,0.00014618,2]
[404080888,1769795443497,-500.0,0.00014618,2]
[404080889,1769795443506,-500.0,0.00014618,2]
[404080890,1769795443515,-784.55885967,0.00014639,2]
[404080891,1769795443524,-500.0,0.00014673,2]
[404080892,1769795443533,-500.0,0.00014673,2]
[404080893,1769795443542,-500.0,0.00014673,2]
[404080894,1769795443551,-500.0,0.00014673,2]
[404080895,1769795443560,-183.75,0.00014678,2]
[404080896,1769795443570,-182.25,0.00014697,2]
[404080897,1769795443579,-1680.0,0.00014718,2]
[404080898,1769795443588,-500.0,0.00014727,2]
[404080899,1769795443597,-500.0,0.00014727,2]
[404080900,1769795443607,-500.0,0.00014727,2]
[404080901,1769795443616,-500.0,0.00014727,2]
[404080902,1769795443625,-364.9,0.00014733,2]
[404080903,1769795443635,-500.0,0.00014782,2]
[404080904,1769795443644,-500.0,0.00014782,2]
[404080905,1769795443653,-404.25101827,0.00014782,2]
[404080906,1769795443662,-500.0,0.00014782,2]
[404080908,1769795443671,-1134.55,0.00014821,2]
[404080909,1769795443680,-500.0,0.00014837,2]
[404080910,1769795443690,-500.0,0.00014837,2]
[404080911,1769795443700,-179.11725287,0.00014837,2]
[404080912,1769795443709,-15219.50415699,0.00014887,2]
[404080913,1769795443719,-12630.23841915,0.00014887,2]
[404080914,1769795443728,-500.0,0.00014892,2]
[404080915,1769795443737,-500.0,0.00014892,2]
[404080916,1769795443747,-189.75735068,0.00014947,2]
[404080917,1769795443756,-500.0,0.00014947,2]
[404080918,1769795443765,-500.0,0.00015001,2]
[404080919,1769795443774,-756.99855445,0.00015001,2]
[404080920,1769795443783,-567.0,0.00015056,2]
[404080921,1769795443793,-1134.55,0.00015095,2]
[404080922,1769795443802,-1600.0,0.00015165,2]
[404080923,1769795443811,-258.16,0.00015171,2]
[404080924,1769795443821,-711.36,0.00015354,2]
[404080925,1769795443830,-1134.58649203,0.00015369,2]
[404080926,1769795443840,-1604.12,0.00015389,2]
[404080927,1769795443849,-15219.50415699,0.00015389,2]
[404080929,1769795443858,-12630.23841915,0.00015389,2]
[404080931,1769795443868,-619.86272074,0.00015484,2]
[404080933,1769795443877,-500.0,0.00015484,2]
[404080935,1769795443886,-500.0,0.00015484,2]
[404080937,1769795443895,-218.68338015,0.00015493,7]
[404080939,1769795443904,-189.27691719,0.00015493,7]
[404080941,1769795443914,-433.0,0.00015695,2]
[404080943,1769795443923,-592.67,0.0001571,2]
[404080945,1769795443932,-500.0,0.0001571,2]
[404080947,1769795443942,-500.0,0.0001571,2]
[404080949,1769795443951,-784.55885967,0.00015726,2]
[404080951,1769795443961,-756.99855445,0.00015726,2]
[404080953,1769795443970,-2447.03475648,0.00015806,2]
[404080954,1769795443979,-6457.76343824,0.00015806,2]
[404080955,1769795443988,-15219.50415699,0.00015892,2]
[404080956,1769795443997,-12630.23841915,0.00015892,2]
[404080958,1769795444008,-258.16,0.00015894,2]
[404080960,1769795444017,-233.6548559,0.00015909,7]
[404080962,1769795444026,-652.99854233,0.0001596,2]
[404080964,1769795444035,-560.19,0.00015974,2]
[404080966,1769795444045,-182.25,0.00016034,2]
[404080968,1769795444054,-3404.72,0.00016116,2]
[404080970,1769795444062,-2351.0,0.0001619,2]
[404080972,1769795444071,-772.81,0.00016317,2]
[404080974,1769795444081,-500.0,0.00016373,2]
[404080976,1769795444090,-500.0,0.00016373,2]
[404080978,1769795444099,-177.64323639,0.00016373,2]
[404080980,1769795444108,-500.0,0.00016373,2]
[404080982,1769795444117,-225.37911043,0.00016373,2]
[404080984,1769795444129,-500.0,0.00016373,2]
[404080985,1769795444138,-500.0,0.00016373,2]
[404080987,1769795444147,-500.0,0.00016373,2]
[404080989,1769795444156,-568.87365999,0.00016373,2]
[404080991,1769795444166,-160.21943413,0.00016373,2]
[404080993,1769795444175,-500.0,0.00016373,2]
[404080995,1769795444184,-500.0,0.00016373,2]
[404080996,1769795444193,-500.0,0.00016373,2]
[404080997,1769795444202,-160.32431704,0.00016373,2]
[404080998,1769795444213,-500.0,0.00016373,2]
[404080999,1769795444222,-164.62391136,0.00016373,2]
[404081000,1769795444231,-558.9380785,0.00016373,2]
[404081001,1769795444240,-500.0,0.00016373,2]
[404081002,1769795444249,-500.0,0.00016373,2]
[404081003,1769795444258,-160.21744138,0.00016373,2]
[404081004,1769795444267,-500.0,0.00016373,2]
[404081005,1769795444277,-500.0,0.00016373,2]
[404081006,1769795444286,-500.0,0.00016373,2]
[404081007,1769795444295,-500.0,0.00016373,2]
[404081008,1769795444308,-500.0,0.00016373,2]
[404081009,1769795444318,-217.57575976,0.00016373,2]
[404081010,1769795444327,-500.0,0.00016373,2]
[404081011,1769795444336,-500.0,0.00016373,2]
[404081012,1769795444345,-500.0,0.00016373,2]
[404081013,1769795444355,-500.0,0.00016373,2]
[404081014,1769795444364,-500.0,0.00016373,2]
[404081015,1769795444373,-166.21493216,0.00016373,2]
[404081016,1769795444383,-239.55126374,0.00016373,2]
[404081017,1769795444392,-500.0,0.00016373,2]
[404081018,1769795444401,-503.15498018,0.00016373,2]
[404081019,1769795444410,-500.0,0.00016373,2]
[404081020,1769795444419,-500.0,0.00016373,2]
[404081021,1769795444428,-500.0,0.00016373,2]
[404081022,1769795444437,-163.00594696,0.00016373,2]
[404081023,1769795444446,-500.0,0.00016373,2]
[404081024,1769795444455,-500.60369246,0.00016373,2]
[404081025,1769795444464,-500.0,0.00016373,2]
[404081026,1769795444474,-500.0,0.00016373,2]
[404081027,1769795444483,-500.0,0.00016373,2]
[404081028,1769795444492,-169.60462217,0.00016373,2]
[404081029,1769795444501,-500.0,0.00016373,2]
[404081030,1769795444511,-500.0,0.00016373,2]
[404081031,1769795444519,-500.0,0.00016373,2]
[404081032,1769795444529,-500.0,0.00016373,2]
[404081033,1769795444538,-500.0,0.00016373,2]
[404081034,1769795444547,-15219.50415699,0.00016394,2]
[404081035,1769795444557,-12630.23841915,0.00016394,2]
[404081036,1769795444566,-500.0,0.00016438,2]
[404081037,1769795444575,-500.0,0.00016438,2]
[404081038,1769795444585,-417.90244786,0.00016438,2]
[404081039,1769795444595,-500.0,0.00016438,2]
[404081040,1769795444604,-500.0,0.00016438,2]
[404081041,1769795444614,-500.0,0.00016438,2]
[404081042,1769795444626,-300.36026674,0.00016438,2]
[404081043,1769795444636,-500.0,0.00016438,2]
[404081044,1769795444646,-500.0,0.00016438,2]
[404081045,1769795444656,-500.0,0.00016438,2]
[404081046,1769795444665,-500.0,0.00016438,2]
[404081047,1769795444674,-203.24240059,0.00016438,2]
[404081048,1769795444684,-500.0,0.00016438,2]
[404081049,1769795444693,-500.0,0.00016438,2]
[404081050,1769795444703,-500.0,0.00016438,2]
[404081051,1769795444713,-500.0,0.00016438,2]
[404081052,1769795444722,-2000.0,0.00016438,2]
[404081053,1769795444732,-756.99855445,0.00016451,2]
[404081054,1769795444741,-311.20527036,0.00016529,2]
[404081055,1769795444751,-772.81,0.00016591,2]
[404081056,1769795444760,-258.16,0.00016616,2]
[404081057,1769795444770,-165.0,0.0001672,2]
[404081058,1769795444779,-200.0,0.00016792,2]
[404081059,1769795444788,-784.55885967,0.00016813,2]
[404081060,1769795444799,-500.0,0.00016849,2]
[404081061,1769795444808,-1600.0,0.00016851,2]
[404081062,1769795444818,-183.75,0.00016851,2]
[404081063,1769795444827,-772.81,0.00016865,2]
[404081064,1769795444836,-500.0,0.00016895,2]
[404081065,1769795444846,-15219.50415699,0.00016896,2]
[404081066,1769795444855,-12630.23841915,0.00016896,2]
[404081067,1769795444996,-500.86269689,0.00016921,2]
[404081068,1769795445007,-1000.0,0.00016921,2]
[404081069,1769795445018,-504.68661395,0.00016921,2]
[404081070,1769795445027,-1000.0,0.00016921,2]
[404081071,1769795445037,-500.4902994,0.00016921,2]
[404081072,1769795445047,-1000.0,0.00016921,2]
[404081073,1769795445057,-1000.0,0.00016921,2]
[404081074,1769795445066,-1000.0,0.00016921,2]
[404081075,1769795445076,-541.28684359,0.00016921,2]
[404081076,1769795445085,-503.09870012,0.00016921,2]
[404081077,1769795445095,-500.0,0.00016921,2]
[404081078,1769795445104,-1000.0,0.00016921,2]
[404081079,1769795445114,-203.98074386,0.00016921,2]
[404081080,1769795445124,-1000.0,0.00016921,2]
[404081081,1769795445136,-490.28446551,0.00016921,2]
[404081082,1769795445145,-500.0,0.00016921,2]
[404081083,1769795445155,-1000.0,0.00016921,2]
[404081084,1769795445164,-1000.0,0.00016921,2]
[404081085,1769795445174,-1000.28855452,0.00016921,2]
[404081086,1769795445184,-1000.0,0.00016921,2]
[404081087,1769795445193,-1000.0,0.00016921,2]
[404081088,1769795445204,-1000.0,0.00016921,2]
[404081089,1769795445215,-1000.0,0.00016921,2]
[404081090,1769795445224,-1000.0,0.00016921,2]
[404081091,1769795445233,-1000.0,0.00016921,2]
[404081092,1769795445244,-1000.0,0.00016921,2]
[404081093,1769795445253,-1000.81154381,0.00016921,2]
[404081094,1769795445263,-459.6118856,0.00016921,2]
[404081095,1769795445272,-401.53067419,0.00016921,2]
[404081096,1769795445282,-804.05633745,0.00016921,2]
[404081097,1769795445293,-1009.36195064,0.00016921,2]
[404081098,1769795445302,-877.26188408,0.00016921,2]
[404081099,1769795445311,-1000.0,0.00016921,2]
[404081100,1769795445321,-1000.0,0.00016921,2]
[404081101,1769795445330,-736.0,0.00016993,2]
[404081102,1769795445340,-364.9,0.00016999,2]
[404081103,1769795445349,-250.0,0.00017,2]
[404081104,1769795445358,-7815.52760498,0.00017,2]
[404081105,1769795445368,-163.0,0.0001704,2]
[404081106,1769795445378,-560.19,0.00017062,2]
[404081107,1769795445388,-151.0,0.00017099,2]
[404081108,1769795445397,-156.587,0.00017099,2]
[404081109,1769795445407,-162.380719,0.00017099,2]
[404081110,1769795445416,-157.32475157,0.00017099,2]
[404081111,1769795445426,-578.20924308,0.00017099,2]
[404081112,1769795445436,-250.0,0.00017099,2]
[404081113,1769795445445,-854.2589148,0.00017099,2]
[404081114,1769795445455,-174.61919141,0.00017099,2]
[404081115,1769795445466,-209.40437684,0.00017099,2]
[404081116,1769795445475,-322.6107,0.00017099,2]
[404081117,1769795445484,-772.81,0.00017139,2]
[404081118,1769795445494,-200.0,0.00017146,2]
[404081119,1769795445503,-217.15233878,0.00017154,2]
[404081120,1769795445512,-756.99855445,0.00017175,2]
[404081121,1769795445521,-200.0,0.0001718,2]
[404081122,1769795445531,-250.0,0.00017183,2]
[404081123,1769795445540,-225.18697532,0.00017209,2]
[404081124,1769795445549,-233.51889341,0.00017264,2]
[404081125,1769795445558,-242.15909246,0.00017319,2]
[404081126,1769795445568,-258.16,0.00017339,2]
[404081127,1769795445577,-868.51,0.00017363,2]
[404081128,1769795445586,-2828.0,0.00017367,2]
[404081129,1769795445595,-182.25,0.0001737,2]
[404081130,1769795445604,-500.0,0.00017373,2]
[404081131,1769795445614,-500.0,0.00017373,2]
[404081132,1769795445623,-500.0,0.00017373,2]
[404081133,1769795445632,-500.0,0.00017373,2]
[404081134,1769795445643,-251.11897888,0.00017374,2]
[404081135,1769795445652,-1000.0,0.00017383,2]
[404081136,1769795445661,-15219.50415699,0.00017398,2]
[404081137,1769795445672,-12630.23841915,0.00017398,2]
[404081138,1769795445681,-153.53,0.000174,2]
[404081139,1769795445691,-772.81,0.00017413,2]
[404081140,1769795445700,-1898.85844425,0.00017421,2]
[404081141,1769795445709,-260.4103811,0.00017429,2]
[404081142,1769795445720,-592.67,0.00017468,2]
[404081143,1769795445730,-208.07287078,0.00017468,2]
[404081144,1769795445740,-385.18354163,0.00017468,2]
[404081145,1769795445751,-1500.0,0.00017468,2]
[404081146,1769795445761,-580.80754144,0.00017468,2]
[404081147,1769795445770,-1505.10384072,0.00017468,2]
[404081148,1769795445780,-1500.0,0.00017468,2]
[404081149,1769795445790,-377.4,0.00017468,2]
[404081150,1769795445799,-1500.0,0.00017468,2]
[404081151,1769795445808,-1000.8272521,0.00017468,2]
[404081152,1769795445817,-1500.0,0.00017468,2]
[404081153,1769795445826,-1500.0,0.00017468,2]
[404081154,1769795445836,-1500.0,0.00017468,2]
[404081155,1769795445845,-1613.81806741,0.00017468,2]
[404081156,1769795445855,-421.02044444,0.00017468,2]
[404081157,1769795445864,-656.65111135,0.00017468,2]
[404081158,1769795445873,-1508.66573499,0.00017468,2]
[404081159,1769795445883,-1500.0,0.00017468,2]
[404081160,1769795445893,-1500.0,0.00017468,2]
[404081161,1769795445903,-500.79205538,0.00017468,2]
[404081162,1769795445912,-206.11887871,0.00017468,2]
[404081163,1769795445921,-270.0455652,0.00017484,2]
[404081164,1769795445931,-280.03725112,0.00017539,2]
[404081165,1769795445940,-290.39862941,0.00017594,2]
[404081166,1769795445949,-868.51,0.00017637,2]
[404081167,1769795445959,-500.0,0.00017639,2]
[404081168,1769795445969,-500.0,0.00017639,2]
[404081169,1769795445978,-1062.24804092,0.0001764,2]
[404081170,1769795445988,-1070.63037875,0.0001764,2]
[404081171,1769795445997,-1079.56708383,0.0001764,2]
[404081172,1769795446007,-1097.8815925,0.0001764,2]
[404081173,1769795446016,-1050.99052593,0.0001764,2]
[404081174,1769795446025,-1054.22656333,0.0001764,2]
[404081175,1769795446035,-1131.79371654,0.0001764,2]
[404081176,1769795446049,-1108.90860821,0.0001764,2]
[404081177,1769795446059,-1108.78614451,0.0001764,2]
[404081178,1769795446069,-1135.17301464,0.0001764,2]
[404081179,1769795446078,-1106.14441508,0.0001764,2]
[404081180,1769795446088,-1107.8765645,0.0001764,2]
[404081181,1769795446098,-1011.14376585,0.0001764,2]
[404081182,1769795446107,-1092.82206154,0.0001764,2]
[404081183,1769795446117,-1139.9356519,0.0001764,2]
[404081184,1769795446129,-1148.32658923,0.0001764,2]
[404081185,1769795446139,-1123.64867097,0.0001764,2]
[404081186,1769795446148,-1077.45157962,0.0001764,2]
[404081187,1769795446157,-1100.98674689,0.0001764,2]
[404081188,1769795446167,-1142.86356421,0.0001764,2]
[404081189,1769795446177,-1027.29337266,0.0001764,2]
[404081190,1769795446187,-1131.93863971,0.0001764,2]
[404081191,1769795446196,-1829.17898656,0.0001764,2]
[404081192,1769795446205,-885.86649465,0.00017647,2]
[404081193,1769795446218,-181.08010149,0.00017647,2]
[404081194,1769795446228,-301.1433787,0.00017649,2]
[404081195,1769795446237,-158.82094085,0.00017654,2]
[404081196,1769795446246,-1000.0,0.00017657,2]
[404081197,1769795446255,-163.0,0.0001768,2]
[404081198,1769795446265,-772.81,0.00017687,2]
[404081199,1769795446274,-183.75,0.00017708,2]
[404081200,1769795446284,-10000.0,0.0001773,2]
[404081201,1769795446293,-25000.0,0.00017768,3]
[404081202,1769795446302,-25000.0,0.00017777,3]
[404081203,1769795446312,-25000.0,0.00017786,3]
[404081204,1769795446321,-25000.0,0.00017794,3]
[404081205,1769795446331,-2314.0,0.000178,2]
[404081206,1769795446340,-25000.0,0.00017803,3]
[404081207,1769795446349,-11392.2601682,0.00017806,2]
[404081208,1769795446359,-17042.13988531,0.00017806,2]
[404081209,1769795446368,-23058.6147,0.00017806,2]
[404081210,1769795446377,-500.0,0.00017808,2]
[404081211,1769795446387,-3292.0,0.00017809,2]
[404081212,1769795446396,-592.67,0.00017811,2]
[404081213,1769795446406,-25000.0,0.00017812,3]
[404081214,1769795446415,-460.64092,0.0001782,2]
[404081215,1769795446424,-460.64093,0.0001782,2]
[404081216,1769795446434,-500.0,0.0001782,2]
[404081217,1769795446443,-150.0,0.0001782,2]
[404081218,1769795446453,-25000.0,0.00017821,3]
[404081219,1769795446462,-500.0,0.00017829,2]
[404081220,1769795446472,-25000.0,0.0001783,3]
[404081221,1769795446482,-109605.83836455,0.0001783,2]
[404081222,1769795446491,-479.73,0.00017836,2]
[404081223,1769795446500,-25000.0,0.00017838,3]
[404081224,1769795446510,-25000.0,0.00017847,3]
[404081225,1769795446519,-592.67,0.00017855,2]
[404081226,1769795446528,-200.0,0.00017856,2]
[404081227,1769795446538,-25000.0,0.00017856,3]
[404081228,1769795446547,-500.0,0.00017863,2]
[404081229,1769795446557,-25000.0,0.00017865,3]
[404081230,1769795446566,-25000.0,0.00017874,3]
[404081231,1769795446575,-500.0,0.00017875,2]
[404081232,1769795446585,-25000.0,0.00017882,3]
[404081233,1769795446595,-25000.0,0.00017891,3]
[404081234,1769795446605,-364.9,0.00017893,2]
[404081235,1769795446614,-165.50957456,0.00017897,3]
[404081237,1769795446623,-784.55885967,0.000179,2]
[404081238,1769795446633,-19277.62638897,0.000179,3]
[404081239,1769795446643,-756.99855445,0.000179,2]
[404081240,1769795446653,-25000.0,0.000179,3]
[404081241,1769795446662,-15219.50415699,0.000179,2]
[404081242,1769795446672,-12630.23841915,0.000179,2]
[404081243,1769795446681,-165.50957456,0.000179,3]
[404081244,1769795446691,-3468.0,0.000179,2]
[404081245,1769795446701,-868.51,0.00017911,2]
[404081246,1769795446710,-500.0,0.00017918,2]
[404081247,1769795446721,-500.0,0.0001793,2]
[404081248,1769795446730,-1000.0,0.00017931,2]
[404081249,1769795446739,-772.81,0.00017961,2]
[404081250,1769795446749,-500.0,0.00017972,2]
[404081251,1769795446758,-500.0,0.00017973,2]
[404081252,1769795446768,-500.0,0.00017973,2]
[404081253,1769795446777,-500.0,0.00017973,2]
[404081254,1769795446787,-333.51196878,0.00017973,2]
[404081255,1769795446796,-160.11295309,0.00017973,2]
[404081256,1769795446806,-500.78976485,0.00017973,2]
[404081257,1769795446815,-175.57287607,0.00017973,2]
[404081258,1769795446824,-500.0,0.00017973,2]
[404081259,1769795446833,-163.36858583,0.00017973,2]
[404081260,1769795446844,-500.0,0.00017973,2]
[404081261,1769795446854,-151.06501544,0.00017973,2]
[404081262,1769795446864,-500.0,0.00017973,2]
[404081263,1769795446874,-500.0,0.00017973,2]
[404081264,1769795446883,-500.63516671,0.00017973,2]
[404081265,1769795446893,-500.0,0.00017973,2]
[404081266,1769795446903,-500.0,0.00017973,2]
[404081267,1769795446912,-500.0,0.00017973,2]
[404081268,1769795446922,-500.0,0.00017973,2]
[404081269,1769795446931,-500.0,0.00017973,2]
[404081270,1769795446941,-500.0,0.00017973,2]
[404081271,1769795446950,-500.0,0.00017973,2]
[404081272,1769795446960,-208.33059439,0.00017973,2]
[404081273,1769795446971,-161.13076084,0.00017973,2]
[404081274,1769795446980,-210.27851574,0.00017973,2]
[404081275,1769795446990,-160.00319068,0.00017973,2]
[404081276,1769795447000,-500.0,0.00017973,2]
[404081277,1769795447010,-500.0,0.00017973,2]
[404081278,1769795447019,-500.0,0.00017973,2]
[404081279,1769795447029,-150.0,0.00017973,2]
[404081280,1769795447038,-500.0,0.00017973,2]
[404081281,1769795447048,-500.0,0.00017973,2]
[404081282,1769795447058,-500.0,0.00017973,2]
[404081283,1769795447069,-500.0,0.00017973,2]
[404081284,1769795447079,-500.0,0.00017973,2]
[404081285,1769795447089,-158.22969695,0.00017973,2]
[404081286,1769795447099,-500.0,0.00017973,2]
[404081287,1769795447109,-500.0,0.00017973,2]
[404081288,1769795447120,-161.46714206,0.00017973,2]
[404081289,1769795447131,-500.2342072,0.00017973,2]
[404081290,1769795447145,-161.90727761,0.00017973,2]
[404081291,1769795447155,-500.0,0.00017973,2]
[404081292,1769795447165,-500.0,0.00017973,2]
[404081293,1769795447446,-500.0,0.00017973,2]
[404081294,1769795447466,-500.0,0.00017973,2]
[404081295,1769795447476,-500.0,0.00017973,2]
[404081296,1769795447486,-500.0,0.00017973,2]
[404081297,1769795447495,-432.02224032,0.00017973,2]
[404081298,1769795447504,-160.13080306,0.00017973,2]
[404081299,1769795447513,-500.0,0.00017973,2]
[404081300,1769795447523,-500.0,0.00017973,2]
[404081301,1769795447533,-160.23001291,0.00017973,2]
[404081302,1769795447543,-500.0,0.00017973,2]
[404081303,1769795447552,-500.0,0.00017973,2]
[404081304,1769795447562,-501.03562757,0.00017973,2]
[404081305,1769795447571,-500.0,0.00017973,2]
[404081306,1769795447581,-340.31348241,0.00017973,2]
[404081307,1769795447591,-500.0,0.00017973,2]
[404081308,1769795447601,-165.89161412,0.00017973,2]
[404081309,1769795447611,-309.21369256,0.00017973,2]
[404081310,1769795447620,-500.0,0.00017973,2]
[404081311,1769795447630,-500.0,0.00017973,2]
[404081312,1769795447639,-500.0,0.00017973,2]
[404081313,1769795447649,-500.0,0.00017973,2]
[404081314,1769795447658,-208.78313746,0.00017973,2]
[404081315,1769795447667,-500.0,0.00017973,2]
[404081316,1769795447677,-500.0,0.00017973,2]
[404081317,1769795447686,-162.07893444,0.00017973,2]
[404081318,1769795447695,-284.37159555,0.00017973,2]
[404081319,1769795447705,-500.42764262,0.00017973,2]
[404081320,1769795447714,-169.6863681,0.00017973,2]
[404081321,1769795447724,-500.0,0.00017973,2]
[404081322,1769795447734,-500.0,0.00017973,2]
[404081323,1769795447744,-500.0,0.00017973,2]
[404081324,1769795447754,-500.0,0.00017973,2]
[404081325,1769795447763,-500.0,0.00017973,2]
[404081326,1769795447773,-500.29869688,0.00017973,2]
[404081327,1769795447782,-500.0,0.00017973,2]
[404081328,1769795447792,-501.19732692,0.00017973,2]
[404081329,1769795447802,-500.0,0.00017973,2]
[404081330,1769795447812,-500.0,0.00017973,2]
[404081331,1769795447821,-500.0,0.00017973,2]
[404081332,1769795447831,-500.0,0.00017973,2]
[404081333,1769795447841,-162.64188199,0.00017973,2]
[404081334,1769795447850,-509.35254647,0.00017973,2]
[404081335,1769795447859,-500.0,0.00017982,2]
[404081336,1769795447869,-500.0,0.00017984,2]
[404081337,1769795447878,-462.92596085,0.00017987,2]
[404081338,1769795447888,-592.67,0.00017989,2]
[404081339,1769795447897,-462.92596085,0.0001799,2]
[404081340,1769795447908,-500.0,0.00017995,2]
[404081341,1769795447917,-436.47012991,0.00017995,2]
[404081342,1769795447927,-592.67,0.00017996,2]
[404081343,1769795447936,-500.0,0.00017996,2]
[404081344,1769795447945,-500.0,0.00017996,2]
[404081345,1769795447955,-500.0,0.00017996,2]
[404081346,1769795447965,-18005.9713946,0.00017997,2]